bitfinex/quotes_ETHUSD_20210701
["timestamp","ask_amount","ask_price","bid_price","bid_amount"]
[1625129131704,3.3762771,2126.5,2126.3,0.01736047]
[1625129131799,7.05256,2126.4,2126.3,0.01736047]
[1625129132096,2.87923978,2126.4,2126.3,8.01736047]
[1625129132197,2.87923978,2126.4,2126.3,0.01736047]
[1625129132899,12.94527173,2126.7,2126.3,0.01736047]
[1625129133963,3.54248173,2126.7,2126.3,0.01736047]
[1625129134467,0.00820019,2126.5,2126.3,0.01736047]
[1625129135016,0.01660173,2126.7,2126.3,0.01736047]
[1625129135317,7.06624173,2126.7,2126.3,0.01736047]
[1625129135719,0.01660173,2126.7,2126.3,0.01736047]
[1625129135816,0.01660173,2126.7,2126.3,3.31816047]
[1625129135918,9.32149243,2127.0,2126.3,3.31816047]
[1625129136167,0.93380786,2127.0,2126.4,5.95797753]
[1625129136255,0.0150808,2127.1,2126.4,5.95797753]
[1625129136343,7.0634708,2127.1,2126.4,5.95797753]
[1625129136847,7.0634708,2127.1,2126.4,25.95797753]
[1625129136848,0.0150808,2127.1,2126.4,25.95797753]
[1625129136951,0.0150808,2127.1,2126.5,0.06]
[1625129137149,0.0150808,2127.1,2126.4,5.89797753]
[1625129137252,0.0150808,2127.1,2126.3,16.47816047]
[1625129137654,0.0150808,2127.1,2126.3,16.32816047]
[1625129137850,0.0150808,2127.1,2126.3,3.31816047]
[1625129137947,0.0150808,2127.1,2126.3,0.01736047]
[1625129138529,3.52535,2126.9,2126.3,0.01736047]
[1625129138627,9.63585,2126.9,2126.3,0.01736047]
[1625129138729,4.70058,2126.8,2126.3,0.01736047]
[1625129138931,0.06,2126.7,2126.3,0.01736047]
[1625129139030,3.58547,2126.7,2126.3,0.01736047]
[1625129139127,3.52547,2126.7,2126.3,0.01736047]
[1625129139231,4.62377,2126.7,2126.3,0.01736047]
[1625129139930,7.05079,2126.6,2126.3,0.01736047]
[1625129140231,10.5763629,2126.6,2126.3,0.01736047]
[1625129140329,3.5255729,2126.6,2126.3,0.01736047]
[1625129140430,0.14,2126.5,2126.3,0.01736047]
[1625129140978,7.19227,2126.5,2126.3,0.01736047]
[1625129141178,7.19227,2126.5,2126.3,0.96576404]
[1625129141277,7.19227,2126.5,2126.3,0.01736047]
[1625129142278,7.19227,2126.5,2126.3,4.7e-07]
[1625129142384,33.36,2126.3,2125.9,0.01885665]
[1625129142485,3.52687,2126.1,2125.3,0.02099113]
[1625129142590,3.83269304,2126.1,2125.3,0.02099113]
[1625129142713,28.3,2125.9,2125.3,0.02099113]
[1625129142829,33.38452685,2125.9,2125.3,0.02099113]
[1625129143026,0.0202994,2125.7,2125.3,0.02099113]
[1625129143124,3.1610994,2125.7,2125.3,0.02099113]
[1625129143374,5.01,2125.5,2125.3,0.02099113]
[1625129143778,12.06655,2125.5,2125.3,0.02099113]
[1625129143975,7.89123372,2125.5,2125.3,0.02099113]
[1625129144077,7.05655,2125.5,2125.3,0.02099113]
[1625129144377,14.98,2125.4,2125.3,0.02099113]
[1625129144576,14.98834135,2125.4,2125.3,0.02099113]
[1625129144780,0.08834135,2125.4,2125.3,0.02099113]
[1625129144978,0.00834135,2125.4,2125.3,0.02099113]
[1625129145287,0.00834135,2125.4,2125.3,0.03759286]
[1625129145691,0.00834135,2125.4,2125.3,0.05343356]
[1625129146791,4.2814932,2125.5,2125.3,0.05343356]
[1625129147090,0.0092656,2125.4,2125.3,0.05343356]
[1625129149610,7.05655,2125.5,2125.3,0.05343356]
[1625129149707,0.06,2125.4,2125.3,0.05343356]
[1625129150104,7.05655,2125.5,2125.3,0.05343356]
[1625129150612,5e-05,2125.5,2125.3,0.05343356]
[1625129150711,5e-05,2125.5,2125.3,4.02663356]
[1625129150809,5e-05,2125.5,2125.4,5.01]
[1625129150907,5e-05,2125.5,2125.4,33.31]
[1625129151007,5e-05,2125.5,2125.4,28.3]
[1625129151210,5e-05,2125.5,2125.3,0.05343356]
[1625129151308,7.05368,2125.5,2125.3,0.05343356]
[1625129152031,18.60282124,2125.4,2125.3,0.05343356]
[1625129152231,18.66282124,2125.4,2125.3,0.05343356]
[1625129152327,12.61,2125.4,2125.3,0.05343356]
[1625129152631,28.3,2125.1,2124.5,0.02347111]
[1625129152732,6.23361312,2125.0,2124.5,0.02347111]
[1625129153127,10.93942312,2125.0,2124.5,0.02347111]
[1625129153721,28.3,2124.8,2124.5,0.02347111]
[1625129154905,7.05931,2124.7,2124.5,0.02347111]
[1625129155107,28.3,2124.6,2124.3,0.02400102]
[1625129155210,40.40346,2124.6,2124.3,0.02400102]
[1625129155307,40.40346,2124.6,2124.1,0.02448804]
[1625129155308,28.3,2124.4,2123.7,0.01119185]
[1625129155411,6.17850815,2124.3,2123.7,0.01119185]
[1625129155509,6.32923556,2124.3,2123.7,0.01119185]
[1625129155610,0.02492911,2124.1,2123.7,0.01119185]
[1625129155708,3.53022,2124.2,2123.7,0.01119185]
[1625129157238,7.06044,2124.0,2123.7,0.01119185]
[1625129158238,7.10044,2124.0,2123.7,0.01119185]
[1625129158438,7.06044,2124.0,2123.7,0.01119185]
[1625129158873,3.53022,2124.2,2123.7,0.01119185]
[1625129160176,7.05982,2124.1,2123.7,0.01119185]
[1625129161537,3.5299985,2124.0,2123.7,0.01119185]
[1625129162140,3.53819155,2124.0,2123.7,0.01119185]
[1625129162739,7.05964,2123.9,2123.7,0.01119185]
[1625129163117,10.30964,2123.9,2123.7,0.01119185]
[1625129164466,10.31783299,2123.9,2123.7,0.01119185]
[1625129164865,10.30964,2123.9,2123.7,0.01119185]
[1625129164967,10.11783299,2123.9,2123.7,0.01119185]
[1625129166131,10.11783299,2123.9,2123.7,0.97504387]
[1625129166230,9.41371,2123.8,2123.7,0.97504387]
[1625129166532,9.41371,2123.8,2123.7,0.03612096]
[1625129166630,6.62773757,2123.8,2123.7,0.03612096]
[1625129166733,6.62773757,2123.8,2123.2,0.007422]
[1625129166836,6.62773757,2123.8,2123.5,5.03532141]
[1625129166837,10.15775757,2123.8,2123.5,5.03532141]
[1625129166933,3.52994,2123.7,2123.5,0.02532141]
[1625129167032,4.55594,2123.7,2123.5,0.02532141]
[1625129167330,13.96878,2123.7,2123.5,0.02532141]
[1625129167978,13.96878,2123.7,2123.5,0.96414439]
[1625129168177,13.96878,2123.7,2123.5,0.02532141]
[1625129168382,20.20956,2123.6,2123.5,0.02532141]
[1625129168480,20.28956,2123.6,2123.5,0.02532141]
[1625129168722,7.13956,2123.6,2123.5,0.02532141]
[1625129168812,7.05956,2123.6,2123.5,0.02532141]
[1625129169014,28.3,2123.5,2123.2,0.007422]
[1625129169217,5.01,2123.3,2122.7,0.02594986]
[1625129169317,8.9257,2123.3,2122.7,0.02594986]
[1625129169517,5.01,2123.2,2122.7,0.02594986]
[1625129169621,10.5962344,2123.0,2122.7,0.02594986]
[1625129172123,4.71,2122.7,2122.3,0.00213175]
[1625129172220,10.7683,2122.7,2122.3,0.00213175]
[1625129172319,3.53246,2122.6,2122.3,0.00213175]
[1625129172420,9.73940724,2122.6,2122.3,0.00213175]
[1625129172518,3.53246,2122.6,2122.3,0.00213175]
[1625129172620,9.72852246,2122.6,2122.3,0.00213175]
[1625129172724,9.7990748,2122.6,2122.3,0.00213175]
[1625129172825,6.27921566,2122.5,2122.3,0.00213175]
[1625129173120,16.85,2122.4,2122.3,0.00213175]
[1625129173221,22.9833583,2122.4,2122.3,0.00213175]
[1625129173321,0.1,2122.4,2122.3,0.00213175]
[1625129173925,6.5959586,2122.4,2122.3,0.00213175]
[1625129174023,6.73801613,2122.4,2122.3,0.00213175]
[1625129174224,18.83801613,2122.4,2122.3,0.00213175]
[1625129174834,18.83801613,2122.4,2121.7,0.02635697]
[1625129174835,28.3,2122.3,2121.7,0.02635697]
[1625129174938,3.5338,2122.1,2121.7,0.02635697]
[1625129175036,6.27280843,2122.0,2121.7,0.02635697]
[1625129175132,13.34039843,2122.0,2121.7,0.02635697]
[1625129175234,0.06,2121.9,2121.7,0.02635697]
[1625129176131,7.87249,2122.0,2121.7,0.02635697]
[1625129176331,7.06759,2122.0,2121.7,0.02635697]
[1625129177402,7.06759,2122.0,2121.7,5.03635697]
[1625129177501,7.06759,2122.0,2121.7,0.02635697]
[1625129178003,10.60131,2122.0,2121.7,0.02635697]
[1625129178654,10.60131,2122.0,2121.7,4.45505697]
[1625129180940,3.53372,2122.0,2121.7,4.45505697]
[1625129181403,3.53372,2122.0,2121.8,0.01668596]
[1625129181807,7.06691,2121.9,2121.8,0.01668596]
[1625129181906,0.09717067,2121.9,2121.8,9.86668596]
[1625129182004,0.09717067,2121.9,2121.8,8.596e-05]
[1625129183845,5.10717067,2121.9,2121.8,8.596e-05]
[1625129184040,5.16717067,2121.9,2121.8,8.596e-05]
[1625129184345,30.26,2121.8,2121.5,0.01]
[1625129184444,0.14,2121.7,2121.5,0.01]
[1625129184544,3.7453,2121.7,2121.5,0.01]
[1625129184742,11.99,2121.6,2121.5,0.01]
[1625129184945,21.41547,2121.6,2121.5,0.01]
[1625129185600,28.3,2121.5,2120.9,0.02647393]
[1625129185785,0.1,2121.4,2120.9,0.02647393]
[1625129185884,5.19786,2121.4,2120.9,0.02647393]
[1625129185983,7.06992,2121.3,2120.9,0.02647393]
[1625129186884,21.01,2121.1,2120.9,0.02647393]
[1625129186985,25.7234,2121.1,2120.9,0.02647393]
[1625129187084,25.8434,2121.1,2120.9,0.02647393]
[1625129187184,9.8434,2121.1,2120.9,0.02647393]
[1625129187285,24.65,2121.0,2119.9,8.16787718]
[1625129187486,0.04620116,2120.9,2119.9,2.3448633]
[1625129187694,24.65,2121.0,2119.9,2.3448633]
[1625129187834,5.03647393,2121.1,2120.0,5.92637574]
[1625129187931,5.03647393,2121.1,2120.0,4.69637574]
[1625129188035,5.03647393,2121.1,2119.9,2.3448633]
[1625129188133,8.90147393,2121.1,2119.9,2.3448633]
[1625129188639,8.90147393,2121.1,2119.8,26.43593579]
[1625129188837,7.07091,2120.8,2119.8,20.5595]
[1625129188935,3.5358,2120.5,2119.7,6.87653222]
[1625129189036,7.2603,2120.5,2119.7,6.87653222]
[1625129189135,7.2603,2120.5,2119.8,2.30939106]
[1625129189242,7.2603,2120.5,2119.9,5.01]
[1625129189436,3.82381071,2120.5,2119.9,5.01]
[1625129190312,3.82381071,2120.5,2119.8,2.30939106]
[1625129190508,3.82381071,2120.5,2119.7,0.02653222]
[1625129190614,3.53589,2120.2,2119.7,0.02653222]
[1625129190808,3.53589,2120.2,2119.7,5.89952033]
[1625129190912,3.53589,2120.2,2119.7,8.37080758]
[1625129191012,4.7144,2120.9,2119.9,5.01]
[1625129191711,4.7144,2120.9,2120.0,6.25942133]
[1625129191812,3.53494,2120.7,2120.2,5.01]
[1625129191962,3.56130393,2121.1,2120.3,6.00023369]
[1625129192066,5.89267,2121.6,2120.4,28.3]
[1625129192163,5.89267,2121.6,2120.5,11.26434511]
[1625129192349,7.06818,2121.5,2120.6,5.01]
[1625129192448,7.06818,2121.5,2120.7,11.12356964]
[1625129192551,7.06818,2121.5,2120.7,6.11356964]
[1625129192649,7.06818,2121.5,2120.6,5.01]
[1625129192751,7.06818,2121.5,2120.7,5.95648622]
[1625129192850,7.06818,2121.5,2120.7,10.96648622]
[1625129192951,7.06818,2121.5,2120.9,0.02647393]
[1625129193061,3.53409,2121.3,2120.9,0.02647393]
[1625129193156,10.4032,2121.8,2120.9,0.02647393]
[1625129193258,10.4032,2121.8,2120.9,0.17647393]
[1625129193357,0.02635697,2121.9,2120.9,2.48586499]
[1625129193454,0.02635697,2121.9,2121.0,0.1]
[1625129193655,0.02635697,2121.9,2121.0,1.05709119]
[1625129193755,0.02635697,2121.9,2121.1,2.46699886]
[1625129193856,3.53342,2121.8,2121.1,2.45939106]
[1625129194057,3.53342,2121.8,2121.2,5.87060242]
[1625129194158,3.53342,2121.8,2121.1,2.45939106]
[1625129194887,3.53342,2121.8,2121.2,6.01227699]
[1625129194989,3.53342,2121.8,2121.1,2.45939106]
[1625129195188,3.52237858,2121.8,2121.1,2.45939106]
[1625129195486,3.52237858,2121.8,2121.2,6.00845812]
[1625129195693,0.02635697,2121.9,2121.2,6.00845812]
[1625129195789,0.02635697,2121.9,2121.3,2.44939106]
[1625129196190,0.02635697,2121.9,2121.3,2.30939106]
[1625129197139,7.06589,2122.3,2121.4,28.3]
[1625129197540,7.06589,2122.3,2121.3,2.30939106]
[1625129197642,12.07169,2122.3,2121.3,2.30939106]
[1625129197739,3.53323,2122.0,2121.1,6.09381393]
[1625129197841,3.53323,2122.0,2121.0,0.9503649]
[1625129197943,3.53323,2122.0,2120.9,17.59691393]
[1625129198041,3.53323,2122.0,2120.9,15.59622921]
[1625129198142,4.47613,2122.0,2121.7,0.02635697]
[1625129198248,0.9429,2122.0,2121.7,0.02635697]
[1625129198445,7.12684,2121.9,2121.7,0.02635697]
[1625129199094,7.06684,2121.9,2121.7,0.02635697]
[1625129199689,0.00678625,2121.8,2121.7,0.02635697]
[1625129202246,7.06684,2121.9,2121.7,0.02635697]
[1625129202341,2.89159959,2121.9,2121.7,0.02635697]
[1625129202543,2.89159959,2121.9,2121.6,4.5268]
[1625129202544,3.53352,2121.7,2121.6,4.1075]
[1625129203587,3.53352,2121.7,2121.4,5.01]
[1625129204490,3.53352,2121.7,2121.2,0.15]
[1625129204590,3.53352,2121.7,2121.3,5.01]
[1625129205391,3.53352,2121.7,2121.4,5.97075741]
[1625129205497,0.02635697,2121.9,2121.5,7.06516]
[1625129205599,0.02635697,2121.9,2121.6,6.06906167]
[1625129205699,0.02635697,2121.9,2121.6,6.53343852]
[1625129205881,0.02618189,2122.5,2121.8,26.04781842]
[1625129205967,0.02618189,2122.5,2121.9,0.03775254]
[1625129206168,0.02618189,2122.5,2122.0,5.16]
[1625129206566,0.02618189,2122.5,2122.1,5.79558311]
[1625129206670,0.02618189,2122.5,2122.0,5.16]
[1625129206769,0.02618189,2122.5,2122.1,6.17350901]
[1625129206871,0.02618189,2122.5,2122.2,0.04]
[1625129207067,3.53196,2122.7,2122.3,28.3]
[1625129207169,11.02594986,2122.9,2122.3,33.31]
[1625129207272,11.02594986,2122.9,2122.4,5.83123456]
[1625129207367,11.02594986,2122.9,2122.3,33.31]
[1625129207468,11.02594986,2122.9,2122.5,0.04]
[1625129207673,11.02594986,2122.9,2122.4,5.01]
[1625129207767,11.02594986,2122.9,2122.5,5.01]
[1625129208193,11.02594986,2122.9,2122.6,5.01]
[1625129208796,11.02594986,2122.9,2122.4,5.01]
[1625129208898,15.55884986,2122.9,2122.4,5.01]
[1625129208997,15.55884986,2122.9,2122.2,4.38462653]
[1625129209097,15.55884986,2122.9,2122.2,2.26257764]
[1625129209197,15.55884986,2122.9,2121.9,6.48275184]
[1625129209647,15.55884986,2122.9,2122.0,0.46437685]
[1625129209748,15.55884986,2122.9,2122.0,0.61437685]
[1625129209847,3.53169,2122.8,2122.0,0.61437685]
[1625129209946,3.53169,2122.8,2122.0,0.69437685]
[1625129210046,3.53169,2122.8,2122.1,2.25691684]
[1625129210147,3.53169,2122.8,2122.2,6.07190497]
[1625129210249,3.53169,2122.8,2122.2,13.13413497]
[1625129210390,3.53169,2122.8,2122.2,15.40618386]
[1625129210490,3.53169,2122.8,2122.2,17.65336333]
[1625129210694,3.53169,2122.8,2122.4,5.01]
[1625129210892,11.02594986,2122.9,2122.4,5.01]
[1625129210995,11.02594986,2122.9,2122.5,6.10461603]
[1625129211093,11.02594986,2122.9,2122.5,6.56899288]
[1625129211194,11.02594986,2122.9,2122.7,5.01]
[1625129211493,11.02594986,2122.9,2122.7,12.07055]
[1625129211590,11.02594986,2122.9,2122.8,26.94958911]
[1625129211993,11.02594986,2122.9,2122.8,5.79958911]
[1625129212095,11.02594986,2122.9,2122.7,5.01]
[1625129212198,11.02594986,2122.9,2122.8,22.71]
[1625129212495,8.23894804,2122.9,2122.8,22.71]
[1625129212809,8.23894804,2122.9,2122.8,5.01]
[1625129213712,8.23894804,2122.9,2122.8,25.01]
[1625129213944,8.23894804,2122.9,2122.8,5.19]
[1625129214037,8.23894804,2122.9,2122.7,0.02594986]
[1625129214871,8.23894804,2122.9,2122.4,4.3296273]
[1625129214974,11.76988804,2122.9,2122.4,4.3296273]
[1625129215070,23.2530579,2122.9,2122.4,4.3296273]
[1625129215187,16.1905379,2122.9,2122.3,0.02618189]
[1625129215289,3.532014,2122.8,2122.3,0.02618189]
[1625129215381,3.592014,2122.8,2122.3,0.02618189]
[1625129215475,3.53241,2122.7,2122.3,0.02618189]
[1625129215582,3.53242,2122.5,2122.3,0.02618189]
[1625129215975,4.46726539,2122.5,2122.3,0.02618189]
[1625129216075,3.53242,2122.5,2122.3,0.02618189]
[1625129216177,9.41977,2122.4,2122.3,0.02618189]
[1625129216273,13.09297,2122.4,2122.3,0.02618189]
[1625129219388,28.3,2122.3,2121.7,0.02635697]
[1625129219484,6.35173881,2122.2,2121.7,0.02635697]
[1625129219675,3.53333,2122.1,2121.7,0.02635697]
[1625129220674,7.06666,2122.0,2121.7,0.02635697]
[1625129220774,7.06666,2122.0,2121.5,2.90717268]
[1625129220876,7.06666,2122.0,2121.7,5.01]
[1625129221073,0.02635697,2121.9,2121.5,2.0]
[1625129221483,0.02635697,2121.9,2121.5,22.0]
[1625129221633,3.53333,2122.1,2121.6,28.3]
[1625129221726,3.53333,2122.1,2121.7,5.01]
[1625129221827,3.53333,2122.1,2121.8,5.01]
[1625129222833,0.02618189,2122.5,2121.8,5.01]
[1625129223327,0.02618189,2122.5,2121.8,4.96]
[1625129223628,0.02618189,2122.5,2121.9,0.08]
[1625129223847,3.50847559,2122.7,2122.0,28.3]
[1625129223938,3.53333,2122.1,2122.0,28.3]
[1625129224037,3.53195,2122.6,2122.0,28.3]
[1625129224235,3.53195,2122.6,2122.0,28.38]
[1625129224838,3.53195,2122.6,2122.3,0.02618189]
[1625129225988,3.53173,2122.5,2122.3,0.02618189]
[1625129226995,3.53195,2122.6,2122.3,0.02618189]
[1625129227599,0.74437185,2122.6,2122.3,0.02618189]
[1625129227946,7.79556967,2122.6,2122.3,0.02618189]
[1625129228058,20.0415479,2122.9,2122.3,0.02618189]
[1625129228059,8.2648979,2122.9,2122.3,0.02618189]
[1625129228201,3.55641241,2123.3,2122.8,20.0]
[1625129228369,3.55641241,2123.3,2123.0,5.01]
[1625129228370,0.02566241,2123.3,2123.0,5.01]
[1625129228657,0.02532141,2123.7,2123.1,5.01]
[1625129228763,0.02532141,2123.7,2123.1,5.02345116]
[1625129229039,1.41e-06,2123.7,2123.2,20.35]
[1625129229130,1.41e-06,2123.7,2123.5,20.0]
[1625129229228,1.41e-06,2123.7,2123.5,23.1855]
[1625129229333,1.41e-06,2123.7,2123.6,5.01]
[1625129229431,1.41e-06,2123.7,2123.6,5.36]
[1625129229528,1.41e-06,2123.7,2123.6,9.06]
[1625129229726,1.41e-06,2123.7,2123.6,13.91735363]
[1625129230129,1.41e-06,2123.7,2123.6,11.63970605]
[1625129230228,1.41e-06,2123.7,2123.6,8.86]
[1625129230528,1.41e-06,2123.7,2123.6,3.85]
[1625129230640,1.41e-06,2123.7,2123.6,3.7]
[1625129232239,7.06006,2124.2,2123.7,7.3]
[1625129232240,7.03499052,2124.2,2123.7,7.3]
[1625129232339,7.03499052,2124.2,2123.6,3.7]
[1625129233175,9.41395,2124.1,2123.9,0.02492911]
[1625129233776,15.55212789,2124.1,2123.9,0.02492911]
[1625129233877,22.81,2124.0,2123.9,0.02492911]
[1625129234078,24.55,2123.9,2123.6,3.7]
[1625129234177,24.55,2123.9,2123.5,0.02532141]
[1625129234329,14.09557911,2124.1,2123.5,0.02532141]
[1625129234629,20.34667499,2124.1,2123.5,0.02532141]
[1625129234727,14.09557911,2124.1,2123.5,0.02532141]
[1625129234828,0.04,2124.0,2123.5,0.02532141]
[1625129235147,9.43887911,2124.1,2123.5,0.02532141]
[1625129235148,0.02492911,2124.1,2123.5,0.02532141]
[1625129235245,7.08489911,2124.1,2123.5,0.02532141]
[1625129235344,7.08489911,2124.1,2123.5,5.03532141]
[1625129235345,0.02492911,2124.1,2123.5,5.03532141]
[1625129235543,0.02492911,2124.1,2123.5,0.02532141]
[1625129235845,6.30613789,2124.1,2123.5,0.02532141]
[1625129236549,0.02492911,2124.1,2123.5,0.02532141]
[1625129236746,7.06103,2123.7,2123.5,0.02532141]
[1625129236846,10.50783,2123.7,2123.5,0.02532141]
[1625129237581,34.4491816,2123.6,2123.1,0.02566241]
[1625129237680,3.53104,2123.5,2123.1,0.02566241]
[1625129237781,35.36293,2123.3,2123.0,6.241e-05]
[1625129237883,35.11205731,2123.2,2122.3,0.02618189]
[1625129237981,11.13255725,2123.1,2122.3,0.02618189]
[1625129238085,5.06982716,2123.0,2122.3,0.02618189]
[1625129238181,3.5323678,2122.8,2122.3,0.02618189]
[1625129238284,6.80932179,2122.7,2122.3,0.02618189]
[1625129238381,14.55708179,2122.7,2122.3,0.02618189]
[1625129238478,3.53263,2122.6,2122.3,0.02618189]
[1625129238981,10.59755,2122.6,2122.3,0.02618189]
[1625129239382,14.68355,2122.6,2122.3,0.02618189]
[1625129240131,0.02594986,2122.9,2122.3,0.02618189]
[1625129240225,0.02594986,2122.9,2122.3,6.05542457]
[1625129240325,0.02594986,2122.9,2122.5,5.01]
[1625129240520,0.02594986,2122.9,2122.6,5.01]
[1625129240621,0.02594986,2122.9,2122.6,10.93925491]
[1625129240720,0.02594986,2122.9,2122.6,5.01]
[1625129240823,0.02594986,2122.9,2122.7,5.01]
[1625129242096,0.02594986,2122.9,2122.3,6.09974334]
[1625129242195,0.02594986,2122.9,2122.3,0.02618189]
[1625129243397,0.02594986,2122.9,2122.4,5.01]
[1625129245049,3.55693241,2123.3,2122.5,28.3]
[1625129245251,3.55693241,2123.3,2122.7,5.01]
[1625129245348,3.55693241,2123.3,2122.8,5.01]
[1625129245653,3.55693241,2123.3,2122.4,5.01]
[1625129245754,15.46646241,2123.3,2122.3,0.02618189]
[1625129245857,3.53171,2123.1,2122.3,0.02618189]
[1625129245951,3.53171,2123.1,2122.7,0.02594986]
[1625129246054,0.04,2123.0,2122.7,0.02594986]
[1625129246251,0.08,2122.9,2122.7,0.02594986]
[1625129246804,35.26417,2122.8,2122.7,4.986e-05]
[1625129246905,40.00917,2122.8,2122.7,4.986e-05]
[1625129247505,28.3,2122.7,2121.7,6.0469611]
[1625129247608,28.32456777,2122.6,2121.7,0.02635697]
[1625129247710,7.4553901,2122.5,2121.7,0.02635697]
[1625129247807,3.53316,2122.3,2121.7,0.02635697]
[1625129247908,7.06679,2122.0,2121.7,0.02635697]
[1625129248305,13.27416868,2122.0,2121.7,0.02635697]
[1625129248509,7.06679,2122.0,2121.7,0.02635697]
[1625129251159,7.0571041,2122.0,2121.7,0.02635697]
[1625129251464,0.12,2121.9,2121.7,0.02635697]
[1625129251872,0.12,2121.9,2120.9,0.02647393]
[1625129251873,0.04984393,2121.6,2120.9,0.02647393]
[1625129251970,11.24798549,2121.6,2120.9,0.02647393]
[1625129252165,12.99643244,2121.4,2120.9,0.02647393]
[1625129252265,6.58317553,2121.3,2120.9,0.02647393]
[1625129252364,6.31254467,2121.3,2120.9,0.02647393]
[1625129252469,7.0706,2121.2,2120.9,0.02647393]
[1625129252565,0.08,2121.2,2120.9,0.02647393]
[1625129252768,6.65768,2121.6,2120.9,0.02647393]
[1625129253475,3.1231,2121.6,2120.9,0.02647393]
[1625129253572,10.1367,2122.4,2120.9,12.27174405]
[1625129253672,10.1367,2122.4,2121.1,20.0]
[1625129253771,10.1367,2122.4,2121.3,5.01]
[1625129254069,10.1367,2122.4,2121.4,5.89173122]
[1625129254172,10.1367,2122.4,2121.2,5.09]
[1625129254268,10.1367,2122.4,2121.2,5.01]
[1625129254568,1.4784,2122.3,2121.2,5.01]
[1625129254672,1.4784,2122.3,2121.3,7.06539]
[1625129254771,5.01,2122.2,2121.0,6.6393506]
[1625129254871,3.82475697,2121.9,2120.9,0.02647393]
[1625129255370,28.35,2121.8,2120.5,5.93869307]
[1625129255514,28.65173446,2121.8,2120.4,9.42354]
[1625129255613,0.02647393,2121.1,2120.4,9.42354]
[1625129255716,3.33517393,2121.1,2120.4,9.42354]
[1625129255913,3.33517393,2121.1,2120.1,19.6449]
[1625129256218,3.33517393,2121.1,2120.1,25.6761719]
[1625129256318,3.33517393,2121.1,2120.1,19.6449]
[1625129256413,3.33517393,2121.1,2120.1,25.75468803]
[1625129256918,3.33517393,2121.1,2120.3,7.0688]
[1625129257114,3.33517393,2121.1,2120.1,25.75468803]
[1625129257315,3.33517393,2121.1,2120.3,5.01]
[1625129257763,3.33517393,2121.1,2120.6,5.01]
[1625129258058,3.33517393,2121.1,2120.2,6.3148608]
[1625129258059,3.33517393,2121.1,2120.3,5.01]
[1625129258161,3.33517393,2121.1,2120.4,5.01]
[1625129258360,3.33517393,2121.1,2120.4,11.00844419]
[1625129258461,3.33517393,2121.1,2120.5,5.01]
[1625129258566,0.02647393,2121.1,2120.5,5.01]
[1625129258666,0.02647393,2121.1,2120.6,11.01576411]
[1625129259196,3.53465,2121.8,2120.7,28.25]
[1625129259298,3.53465,2121.8,2120.8,6.071076]
[1625129259404,3.53465,2121.8,2120.9,5.01]
[1625129259503,0.02635697,2121.9,2121.0,11.15848984]
[1625129259895,0.02635697,2121.9,2121.0,5.01]
[1625129260061,0.02635697,2121.9,2121.1,6.10718099]
[1625129260162,0.02635697,2121.9,2121.3,5.01]
[1625129260563,0.02635697,2121.9,2121.0,0.15]
[1625129260663,0.02635697,2121.9,2121.0,11.34740148]
[1625129261160,0.02635697,2121.9,2121.1,7.06629]
[1625129261363,0.02635697,2121.9,2121.3,5.01]
[1625129261461,0.02635697,2121.9,2121.2,10.98519149]
[1625129261563,0.02635697,2121.9,2121.0,5.16]
[1625129261664,0.02635697,2121.9,2121.1,5.01]
[1625129261764,0.02635697,2121.9,2121.1,10.9958883]
[1625129261962,0.02635697,2121.9,2121.0,5.01]
[1625129262062,0.02635697,2121.9,2121.1,5.01]
[1625129262702,7.09410697,2121.9,2121.2,6.10947529]
[1625129262898,0.02635697,2121.9,2121.2,6.46717117]
[1625129262997,0.02635697,2121.9,2121.0,5.01]
[1625129263096,0.02635697,2121.9,2121.2,6.11265773]
[1625129264300,0.02635697,2121.9,2121.0,12.07657]
[1625129264539,0.02635697,2121.9,2121.1,6.06779397]
[1625129264735,0.02635697,2121.9,2121.3,5.01]
[1625129265038,0.02635697,2121.9,2120.9,5.03647393]
[1625129265139,3.70325697,2121.9,2121.0,5.01]
[1625129265238,3.70325697,2121.9,2121.0,11.03014175]
[1625129265335,3.70325697,2121.9,2121.1,5.01]
[1625129265437,10.77085697,2121.9,2121.1,5.01]
[1625129265535,10.77085697,2121.9,2121.0,5.01]
[1625129265636,10.77085697,2121.9,2121.0,11.14552124]
[1625129265938,10.77085697,2121.9,2121.0,6.13552124]
[1625129266139,10.83085697,2121.9,2120.9,0.02647393]
[1625129266689,10.77085697,2121.9,2120.9,0.02647393]
[1625129268246,3.53449,2121.6,2120.9,0.02647393]
[1625129268443,10.0,2121.5,2120.9,0.02647393]
[1625129268547,5.01,2121.4,2120.9,0.02647393]
[1625129268645,5.01,2121.3,2120.9,0.02647393]
[1625129268747,8.4506,2121.4,2120.9,0.02647393]
[1625129268844,9.6265,2121.4,2120.9,0.02647393]
[1625129269057,28.25,2121.2,2120.1,12.7949]
[1625129269151,6.75269199,2121.1,2120.1,2.0]
[1625129269258,12.96466,2120.9,2119.9,2.0]
[1625129269361,7.00756679,2120.8,2119.8,10.1052]
[1625129269455,6.97906982,2120.8,2119.7,0.02653222]
[1625129269950,0.03246893,2120.7,2119.7,0.02653222]
[1625129270050,0.022605,2120.8,2119.7,0.02653222]
[1625129270551,18.61139,2120.9,2119.7,0.02653222]
[1625129270856,15.0755,2120.9,2119.7,0.02653222]
[1625129270951,12.832,2120.9,2119.7,0.02653222]
[1625129271054,3.53563,2121.0,2119.7,20.49090907]
[1625129271154,3.82647393,2121.1,2119.8,6.7320301]
[1625129271313,0.02647393,2121.1,2120.0,5.01]
[1625129271401,0.02647393,2121.1,2120.1,6.0006232]
[1625129271500,0.02647393,2121.1,2120.1,6.01304337]
[1625129271603,0.02647393,2121.1,2120.2,7.06965]
[1625129271706,0.02647393,2121.1,2120.4,5.01]
[1625129271801,0.01678129,2121.1,2120.3,5.01]
[1625129271901,3.43118129,2121.1,2120.6,5.01]
[1625129272004,3.43118129,2121.1,2120.5,5.01]
[1625129272303,3.43118129,2121.1,2120.3,5.93468934]
[1625129272404,3.43118129,2121.1,2120.2,5.01]
[1625129272510,3.43118129,2121.1,2120.3,6.03358403]
[1625129272609,10.50135129,2121.1,2120.3,5.95716029]
[1625129272708,3.43118129,2121.1,2120.5,5.01]
[1625129273012,3.43118129,2121.1,2120.2,5.01]